[Event "*** Qualifier 3: Titled Tuesday 3|2 Blitz"]
[Site "Chess.com"]
[Date "2017.04.18"]
[Round "1"]
[White "agapov771"]
[Black "Roachelley"]
[Result "0-1"]
[WhiteElo "2449"]
[BlackElo "2142"]
[TimeControl "180+2"]
[EndTime "13:10:16 PDT"]
[Termination "Roachelley won by resignation"]

1. d4 {[%clk 0:02:15.9]} 1... Nf6 {[%clk 0:02:59.9]} 2. c4 {[%clk 0:02:15.9]}
2... g6 {[%clk 0:03:00.9]} 3. Nc3 {[%clk 0:02:17.1]} 3... d5 {[%clk 0:03:01.9]}
4. cxd5 {[%clk 0:02:17.9]} 4... Nxd5 {[%clk 0:03:02.1]} 5. e4 {[%clk 0:02:17.8]}
5... Nxc3 {[%clk 0:03:03.4]} 6. bxc3 {[%clk 0:02:19.2]} 6... Bg7 {[%clk
0:03:05.1]} 7. Nf3 {[%clk 0:02:15.9]} 7... c5 {[%clk 0:03:05.7]} 8. Be2 {[%clk
0:02:15.7]} 8... Nc6 {[%clk 0:03:04.9]} 9. Be3 {[%clk 0:02:16.1]} 9... O-O
{[%clk 0:03:03.9]} 10. O-O {[%clk 0:02:16.3]} 10... Qc7 {[%clk 0:03:00.7]} 11.
Rc1 {[%clk 0:02:16.2]} 11... Rd8 {[%clk 0:03:00.1]} 12. d5 {[%clk 0:02:15.8]}
12... Na5 {[%clk 0:02:59]} 13. c4 {[%clk 0:02:15.9]} 13... a6 {[%clk 0:02:57.8]}
14. Qd2 {[%clk 0:02:15.4]} 14... Rb8 {[%clk 0:02:55.1]} 15. h3 {[%clk
0:02:14.9]} 15... b6 {[%clk 0:02:40.8]} 16. Rfd1 {[%clk 0:02:14.7]} 16... Nb7
{[%clk 0:02:39.4]} 17. Bf4 {[%clk 0:02:15]} 17... e5 {[%clk 0:02:31]} 18. Bg5
{[%clk 0:02:14.3]} 18... f6 {[%clk 0:02:29.6]} 19. Be3 {[%clk 0:02:13.4]} 19...
Nd6 {[%clk 0:02:29.9]} 20. Qc2 {[%clk 0:02:13.4]} 20... Qe7 {[%clk 0:02:27.2]}
21. Nd2 {[%clk 0:02:12.1]} 21... Bd7 {[%clk 0:02:21.9]} 22. f3 {[%clk
0:02:11.2]} 22... f5 {[%clk 0:02:18.1]} 23. Nb3 {[%clk 0:02:10.1]} 23... f4
{[%clk 0:02:18.9]} 24. Bf2 {[%clk 0:02:10.1]} 24... g5 {[%clk 0:02:20.4]} 25.
Qd2 {[%clk 0:02:09.5]} 25... h5 {[%clk 0:02:21.2]} 26. Qd3 {[%clk 0:02:03.9]}
26... Bf6 {[%clk 0:02:17.2]} 27. Rb1 {[%clk 0:01:49]} 27... Qg7 {[%clk
0:02:13.8]} 28. Nd2 {[%clk 0:01:48]} 28... Rdc8 {[%clk 0:02:08.7]} 29. Rb2
{[%clk 0:01:47.4]} 29... b5 {[%clk 0:02:06]} 30. cxb5 {[%clk 0:01:47.3]} 30...
axb5 {[%clk 0:02:07.3]} 31. Rc1 {[%clk 0:01:46.6]} 31... c4 {[%clk 0:02:03.4]}
32. Qc3 {[%clk 0:01:45.8]} 32... g4 {[%clk 0:01:57.2]} 33. fxg4 {[%clk
0:01:44.7]} 33... hxg4 {[%clk 0:01:57.7]} 34. hxg4 {[%clk 0:01:45.1]} 34... Bxg4
{[%clk 0:01:57.5]} 35. Bxg4 {[%clk 0:01:45.4]} 35... Qxg4 {[%clk 0:01:57.9]} 36.
Qf3 {[%clk 0:01:45.6]} 36... Qxf3 {[%clk 0:01:55.2]} 37. Nxf3 {[%clk 0:01:42.6]}
37... b4 {[%clk 0:01:53.7]} 38. Re2 {[%clk 0:01:41.5]} 38... c3 {[%clk
0:01:42.3]} 39. Rb1 {[%clk 0:01:36.9]} 39... Rc4 {[%clk 0:01:41.9]} 40. Rbe1
{[%clk 0:01:24.8]} 40... Rbc8 {[%clk 0:01:34.5]} 41. Bh4 {[%clk 0:01:22.4]}
41... Bxh4 {[%clk 0:01:30.8]} 42. Nxh4 {[%clk 0:01:22.4]} 42... Rxe4 {[%clk
0:01:12.7]} 43. Rxe4 {[%clk 0:01:16.6]} 43... Nxe4 {[%clk 0:01:12.9]} 44. Nf3
{[%clk 0:01:16.4]} 44... Ng3 {[%clk 0:01:00.7]} 45. Kf2 {[%clk 0:01:07.9]} 45...
c2 {[%clk 0:00:49.1]} 46. Rc1 {[%clk 0:01:07]} 46... Ne4+ {[%clk 0:00:49.5]} 47.
Ke1 {[%clk 0:01:04.8]} 47... Rc5 {[%clk 0:00:44.3]} 48. Nxe5 {[%clk 0:01:00]}
48... Rxd5 {[%clk 0:00:45.2]} 49. Nf3 {[%clk 0:01:00.2]} 49... Rc5 {[%clk
0:00:43.9]} 50. Nd4 {[%clk 0:00:58.3]} 50... Rc4 {[%clk 0:00:39.5]} 51. Ne6
{[%clk 0:00:53.4]} 51... Kf7 {[%clk 0:00:31.2]} 52. Nxf4 {[%clk 0:00:51.8]}
52... Nc5 {[%clk 0:00:29.2]} 53. g3 {[%clk 0:00:48.8]} 53... Kf6 {[%clk
0:00:18.9]} 54. Kd2 {[%clk 0:00:48.4]} 54... b3 {[%clk 0:00:14]} 55. Nd5+ {[%clk
0:00:47.5]} 55... Ke5 {[%clk 0:00:14.5]} 56. Ne3 {[%clk 0:00:47.5]} 56... Rd4+
{[%clk 0:00:15]} 57. Kc3 {[%clk 0:00:45.1]} 57... Rd3+ {[%clk 0:00:16.1]} 58.
Kb2 {[%clk 0:00:44.9]} 58... Na4+ {[%clk 0:00:16.6]} 59. Ka3 {[%clk 0:00:41.6]}
59... b2+ {[%clk 0:00:17.8]} 60. Kxa4 {[%clk 0:00:41.7]} 60... bxc1=Q {[%clk
0:00:19.1]} 61. Nc4+ {[%clk 0:00:40.2]} 61... Kd5 {[%clk 0:00:19.6]} 62. Nb6+
{[%clk 0:00:37.2]} 62... Kc6 {[%clk 0:00:20.8]} 63. Nc4 {[%clk 0:00:36.4]} 63...
Rd4 {[%clk 0:00:21.2]} 64. Kb4 {[%clk 0:00:35.3]} 64... Qb1+ {[%clk 0:00:21.4]}
65. Kc3 {[%clk 0:00:34.7]} 65... Rxc4+ {[%clk 0:00:22.1]} 66. Kxc4 {[%clk
0:00:34.7]} 66... c1=Q+ {[%clk 0:00:23.3]} 0-1

[Event "*** Qualifier 3: Titled Tuesday 3|2 Blitz"]
[Site "Chess.com"]
[Date "2017.04.18"]
[Round "1"]
[White "DiogenesSinopeus"]
[Black "XDPS"]
[Result "1/2-1/2"]
[WhiteElo "2278"]
[BlackElo "2549"]
[TimeControl "180+2"]
[EndTime "13:10:17 PDT"]
[Termination "Game drawn - insufficient material"]

1. d4 {[%clk 0:03:02]} 1... d5 {[%clk 0:03:00.2]} 2. c4 {[%clk 0:03:03]} 2... c6
{[%clk 0:03:00.8]} 3. Nc3 {[%clk 0:03:03.9]} 3... Nf6 {[%clk 0:03:01.1]} 4. e3
{[%clk 0:03:04.8]} 4... e6 {[%clk 0:03:01.6]} 5. Nf3 {[%clk 0:03:06]} 5... Nbd7
{[%clk 0:03:02.5]} 6. Qc2 {[%clk 0:03:07.2]} 6... Bd6 {[%clk 0:03:03]} 7. g4
{[%clk 0:03:08.4]} 7... Bb4 {[%clk 0:03:03.2]} 8. Bd2 {[%clk 0:03:03.7]} 8...
Qe7 {[%clk 0:03:01.9]} 9. Bd3 {[%clk 0:03:01.5]} 9... Nxg4 {[%clk 0:03:02.2]}
10. Rg1 {[%clk 0:02:56.4]} 10... f5 {[%clk 0:03:03.6]} 11. a3 {[%clk 0:02:47.3]}
11... Bxc3 {[%clk 0:03:00.3]} 12. Bxc3 {[%clk 0:02:48.5]} 12... a5 {[%clk
0:02:53]} 13. O-O-O {[%clk 0:02:46.2]} 13... dxc4 {[%clk 0:02:49.4]} 14. Bxc4
{[%clk 0:02:36.7]} 14... b5 {[%clk 0:02:50.3]} 15. Bb3 {[%clk 0:02:07.4]} 15...
b4 {[%clk 0:02:50.9]} 16. Be1 {[%clk 0:01:42.8]} 16... bxa3 {[%clk 0:02:27.3]}
17. Qxc6 {[%clk 0:01:43.5]} 17... Rb8 {[%clk 0:02:23.4]} 18. Qxe6 {[%clk
0:01:27.2]} 18... Qxe6 {[%clk 0:01:05]} 19. Bxe6 {[%clk 0:01:29.1]} 19... Bb7
{[%clk 0:01:06.2]} 20. d5 {[%clk 0:01:06.7]} 20... a2 {[%clk 0:01:00.8]} 21. Kc2
{[%clk 0:00:50.8]} 21... Nc5 {[%clk 0:00:42.3]} 22. Bxf5 {[%clk 0:00:39.5]}
22... Bxd5 {[%clk 0:00:43.4]} 23. Nd4 {[%clk 0:00:28.4]} 23... Nxh2 {[%clk
0:00:38.2]} 24. Bxa5 {[%clk 0:00:22.2]} 24... O-O {[%clk 0:00:36.5]} 25. Bc3
{[%clk 0:00:17.1]} 25... Rxf5 {[%clk 0:00:31.3]} 26. Nxf5 {[%clk 0:00:12.3]}
26... Be4+ {[%clk 0:00:32]} 27. Kd2 {[%clk 0:00:09.7]} 27... Nf3+ {[%clk
0:00:23.2]} 28. Ke2 {[%clk 0:00:07.4]} 28... Nxg1+ {[%clk 0:00:24.4]} 29. Rxg1
{[%clk 0:00:07.8]} 29... Bxf5 {[%clk 0:00:24.2]} 30. Rxg7+ {[%clk 0:00:08.8]}
30... Kf8 {[%clk 0:00:25.6]} 31. Ra7 {[%clk 0:00:09.9]} 31... Bd3+ {[%clk
0:00:23.5]} 32. Kf3 {[%clk 0:00:10]} 32... Ba6 {[%clk 0:00:21.1]} 33. b4 {[%clk
0:00:08.6]} 33... Rxb4 {[%clk 0:00:18]} 34. Bxb4 {[%clk 0:00:08.6]} 34... a1=Q
{[%clk 0:00:18.5]} 35. Bxc5+ {[%clk 0:00:10.1]} 35... Ke8 {[%clk 0:00:19.5]} 36.
Bd4 {[%clk 0:00:07.3]} 36... Qh1+ {[%clk 0:00:19.4]} 37. Kg3 {[%clk 0:00:06.2]}
37... Qg1+ {[%clk 0:00:20.3]} 38. Kf3 {[%clk 0:00:06.2]} 38... Qh1+ {[%clk
0:00:21.2]} 39. Kg3 {[%clk 0:00:07.4]} 39... Bb7 {[%clk 0:00:22.7]} 40. f4
{[%clk 0:00:03.6]} 40... Qf3+ {[%clk 0:00:23.4]} 41. Kh4 {[%clk 0:00:04.4]}
41... Qd5 {[%clk 0:00:23.2]} 42. Kg4 {[%clk 0:00:04.4]} 42... Kf7 {[%clk
0:00:22.3]} 43. Ra1 {[%clk 0:00:03.7]} 43... Kg6 {[%clk 0:00:23]} 44. Rg1 {[%clk
0:00:04.1]} 44... h5+ {[%clk 0:00:16.6]} 45. Kh4+ {[%clk 0:00:05.4]} 45... Kh6
{[%clk 0:00:17.9]} 46. Bg7+ {[%clk 0:00:05.8]} 46... Kh7 {[%clk 0:00:18.7]} 47.
Bd4 {[%clk 0:00:06.9]} 47... Qf3 {[%clk 0:00:15.1]} 48. Kg5 {[%clk 0:00:04.2]}
48... Bc6 {[%clk 0:00:13.8]} 49. Kf6 {[%clk 0:00:04.6]} 49... h4 {[%clk
0:00:07.3]} 50. Rg7+ {[%clk 0:00:05.5]} 50... Kh6 {[%clk 0:00:08.5]} 51. Rg6+
{[%clk 0:00:07]} 51... Kh5 {[%clk 0:00:10]} 52. Rg5+ {[%clk 0:00:08.3]} 52...
Kh6 {[%clk 0:00:11.6]} 53. Rg6+ {[%clk 0:00:09.8]} 53... Kh7 {[%clk 0:00:13]}
54. Rg7+ {[%clk 0:00:11.2]} 54... Kh8 {[%clk 0:00:14.1]} 55. Kf5 {[%clk
0:00:04]} 55... Qe4+ {[%clk 0:00:14.7]} 56. Kg4 {[%clk 0:00:04.4]} 56... Qxd4
{[%clk 0:00:15.5]} 57. exd4 {[%clk 0:00:04]} 57... h3 {[%clk 0:00:16.6]} 58.
Kxh3 {[%clk 0:00:05]} 58... Kxg7 {[%clk 0:00:17.6]} 59. Kg4 {[%clk 0:00:06.5]}
59... Kf6 {[%clk 0:00:19.1]} 60. Kg3 {[%clk 0:00:07.4]} 60... Bd5 {[%clk
0:00:20.6]} 61. Kf2 {[%clk 0:00:08.7]} 61... Kf5 {[%clk 0:00:22.5]} 62. Ke3
{[%clk 0:00:10.2]} 62... Be4 {[%clk 0:00:24.1]} 63. Kd2 {[%clk 0:00:11.4]} 63...
Kxf4 {[%clk 0:00:25.7]} 64. Kc3 {[%clk 0:00:12.1]} 64... Bd5 {[%clk 0:00:27.6]}
65. Kb4 {[%clk 0:00:13.4]} 65... Ke4 {[%clk 0:00:29.5]} 66. Kc5 {[%clk 0:00:15]}
66... Be6 {[%clk 0:00:30.1]} 67. d5 {[%clk 0:00:16.5]} 67... Bxd5 {[%clk
0:00:31.2]} 1/2-1/2

[Event "*** Qualifier 3: Titled Tuesday 3|2 Blitz"]
[Site "Chess.com"]
[Date "2017.04.18"]
[Round "1"]
[White "Journey_to_GrandMaster_YT"]
[Black "LuckyTiger"]
[Result "0-1"]
[WhiteElo "2304"]
[BlackElo "2604"]
[TimeControl "180+2"]
[EndTime "13:10:44 PDT"]
[Termination "LuckyTiger won by checkmate"]

1. d4 {[%clk 0:03:01.7]} 1... Nf6 {[%clk 0:03:00.5]} 2. Nf3 {[%clk 0:03:00.5]}
2... c5 {[%clk 0:03:01.4]} 3. d5 {[%clk 0:03:01.4]} 3... g6 {[%clk 0:02:59.8]}
4. g3 {[%clk 0:02:58.2]} 4... Bg7 {[%clk 0:03:00.4]} 5. Bg2 {[%clk 0:02:59]}
5... O-O {[%clk 0:02:59.5]} 6. O-O {[%clk 0:03:00.3]} 6... d6 {[%clk 0:03:00.2]}
7. c4 {[%clk 0:03:00.6]} 7... b5 {[%clk 0:03:01]} 8. Nbd2 {[%clk 0:02:54.8]}
8... Nbd7 {[%clk 0:02:51.6]} 9. e4 {[%clk 0:02:51.6]} 9... bxc4 {[%clk
0:02:47.9]} 10. Re1 {[%clk 0:02:49.2]} 10... Nb6 {[%clk 0:02:47.9]} 11. Qc2
{[%clk 0:02:48.7]} 11... Ba6 {[%clk 0:02:37.3]} 12. Bf1 {[%clk 0:02:49.3]} 12...
Qc8 {[%clk 0:02:26.7]} 13. Nxc4 {[%clk 0:02:48.4]} 13... Bxc4 {[%clk 0:02:24.9]}
14. Bxc4 {[%clk 0:02:48.4]} 14... Nxc4 {[%clk 0:02:26.8]} 15. Qxc4 {[%clk
0:02:49.1]} 15... Nd7 {[%clk 0:02:28.7]} 16. Rb1 {[%clk 0:02:42.5]} 16... Rb8
{[%clk 0:02:24.3]} 17. b3 {[%clk 0:02:40.6]} 17... Rb4 {[%clk 0:02:11.6]} 18.
Qd3 {[%clk 0:02:38.5]} 18... c4 {[%clk 0:02:07.3]} 19. bxc4 {[%clk 0:02:38.8]}
19... Rxb1 {[%clk 0:02:09.2]} 20. Qxb1 {[%clk 0:02:39.4]} 20... Qxc4 {[%clk
0:02:11.1]} 21. Bg5 {[%clk 0:02:31.3]} 21... Rb8 {[%clk 0:02:10.2]} 22. Qc1
{[%clk 0:02:31.9]} 22... Qxc1 {[%clk 0:01:37.9]} 23. Rxc1 {[%clk 0:02:33.8]}
23... Nc5 {[%clk 0:01:39.6]} 24. Bxe7 {[%clk 0:02:23.4]} 24... Nxe4 {[%clk
0:01:40.7]} 25. Rc7 {[%clk 0:02:20.2]} 25... a5 {[%clk 0:01:33.6]} 26. Ra7
{[%clk 0:02:18.6]} 26... Bc3 {[%clk 0:01:33.1]} 27. Rc7 {[%clk 0:02:07.2]} 27...
Rb1+ {[%clk 0:01:23.1]} 28. Kg2 {[%clk 0:02:07.9]} 28... Rb2 {[%clk 0:01:24.3]}
29. Ng5 {[%clk 0:01:58.8]} 29... Nxg5 {[%clk 0:00:49.9]} 30. Rxc3 {[%clk
0:01:50.6]} 30... Rxf2+ {[%clk 0:00:49.9]} 31. Kg1 {[%clk 0:01:32.9]} 31... Rf5
{[%clk 0:00:43.6]} 32. Bxd6 {[%clk 0:01:00.7]} 32... Rxd5 {[%clk 0:00:34.6]} 33.
Be7 {[%clk 0:00:55.8]} 33... Kg7 {[%clk 0:00:27.3]} 34. Bxg5 {[%clk 0:00:22.9]}
34... Rxg5 {[%clk 0:00:29.2]} 35. Rc7 {[%clk 0:00:21.3]} 35... Rf5 {[%clk
0:00:28.3]} 36. Ra7 {[%clk 0:00:21.4]} 36... h5 {[%clk 0:00:29.7]} 37. Kg2
{[%clk 0:00:22.1]} 37... Kf6 {[%clk 0:00:29.5]} 38. a4 {[%clk 0:00:22.5]} 38...
Ke6 {[%clk 0:00:23.8]} 39. h3 {[%clk 0:00:23.6]} 39... Rc5 {[%clk 0:00:20.8]}
40. Kf3 {[%clk 0:00:20.6]} 40... g5 {[%clk 0:00:17.9]} 41. h4 {[%clk 0:00:20.5]}
41... gxh4 {[%clk 0:00:14.3]} 42. gxh4 {[%clk 0:00:21.4]} 42... f6 {[%clk
0:00:14.8]} 43. Kg3 {[%clk 0:00:22.5]} 43... Kf5 {[%clk 0:00:15.3]} 44. Kh3
{[%clk 0:00:22.5]} 44... Rc3+ {[%clk 0:00:15.5]} 45. Kh2 {[%clk 0:00:23.5]}
45... Rc5 {[%clk 0:00:16.6]} 46. Kh3 {[%clk 0:00:24.6]} 46... Kf4 {[%clk
0:00:17.3]} 47. Ra8 {[%clk 0:00:18.7]} 47... f5 {[%clk 0:00:17.7]} 48. Kg2
{[%clk 0:00:20]} 48... Kg4 {[%clk 0:00:18.2]} 49. Kf2 {[%clk 0:00:19.7]} 49...
Re5 {[%clk 0:00:15.8]} 50. Ra7 {[%clk 0:00:17.5]} 50... Kxh4 {[%clk 0:00:15.6]}
51. Kf3 {[%clk 0:00:18.9]} 51... Kg5 {[%clk 0:00:16.8]} 52. Rg7+ {[%clk
0:00:18.9]} 52... Kf6 {[%clk 0:00:17]} 53. Ra7 {[%clk 0:00:20.3]} 53... Rc5
{[%clk 0:00:16.7]} 54. Rh7 {[%clk 0:00:20.5]} 54... Kg6 {[%clk 0:00:16.8]} 55.
Ra7 {[%clk 0:00:21.2]} 55... h4 {[%clk 0:00:18.2]} 56. Ra8 {[%clk 0:00:20.4]}
56... h3 {[%clk 0:00:14.9]} 57. Rh8 {[%clk 0:00:21.2]} 57... Rc3+ {[%clk
0:00:12.1]} 58. Kf2 {[%clk 0:00:21.4]} 58... Kg5 {[%clk 0:00:12.6]} 59. Ra8
{[%clk 0:00:21]} 59... Rc5 {[%clk 0:00:10.7]} 60. Rh8 {[%clk 0:00:21.7]} 60...
Kg4 {[%clk 0:00:11]} 61. Rg8+ {[%clk 0:00:23.2]} 61... Kf4 {[%clk 0:00:12.2]}
62. Rh8 {[%clk 0:00:25]} 62... Rc2+ {[%clk 0:00:13.4]} 63. Kg1 {[%clk
0:00:26.2]} 63... Rc3 {[%clk 0:00:13.4]} 64. Ra8 {[%clk 0:00:26.4]} 64... Kg3
{[%clk 0:00:13.7]} 65. Rg8+ {[%clk 0:00:27.3]} 65... Kf3 {[%clk 0:00:15.2]} 66.
Ra8 {[%clk 0:00:28.2]} 66... Rc5 {[%clk 0:00:14.5]} 67. Rh8 {[%clk 0:00:28.4]}
67... f4 {[%clk 0:00:14.5]} 68. Rxh3+ {[%clk 0:00:28.9]} 68... Ke2 {[%clk
0:00:16.2]} 69. Rh8 {[%clk 0:00:29.3]} 69... Rg5+ {[%clk 0:00:16.2]} 70. Kh2
{[%clk 0:00:29.8]} 70... Kf2 {[%clk 0:00:16.9]} 71. Rb8 {[%clk 0:00:28.8]} 71...
Rh5# {[%clk 0:00:17.9]} 0-1

[Event "*** Qualifier 3: Titled Tuesday 3|2 Blitz"]
[Site "Chess.com"]
[Date "2017.04.18"]
[Round "1"]
[White "SwiftyMcBishop"]
[Black "maciek_92"]
[Result "1/2-1/2"]
[WhiteElo "2261"]
[BlackElo "2529"]
[TimeControl "180+2"]
[EndTime "13:11:29 PDT"]
[Termination "Game drawn by agreement"]

1. e4 {[%clk 0:03:02]} 1... c5 {[%clk 0:03:00.4]} 2. Nf3 {[%clk 0:03:01.9]} 2...
e6 {[%clk 0:03:01.6]} 3. c3 {[%clk 0:02:59.8]} 3... Nf6 {[%clk 0:03:02.5]} 4. e5
{[%clk 0:02:59.4]} 4... Nd5 {[%clk 0:03:03.6]} 5. d4 {[%clk 0:02:59]} 5... cxd4
{[%clk 0:03:04.6]} 6. cxd4 {[%clk 0:02:59.8]} 6... Nc6 {[%clk 0:03:06.1]} 7. Bc4
{[%clk 0:02:59.4]} 7... d6 {[%clk 0:03:06.9]} 8. O-O {[%clk 0:02:58.4]} 8... Be7
{[%clk 0:03:08.2]} 9. Nc3 {[%clk 0:02:57.2]} 9... Nxc3 {[%clk 0:03:08.8]} 10.
bxc3 {[%clk 0:02:57.6]} 10... dxe5 {[%clk 0:03:10.4]} 11. Nxe5 {[%clk
0:02:54.3]} 11... Nxe5 {[%clk 0:03:09.7]} 12. dxe5 {[%clk 0:02:56.2]} 12... O-O
{[%clk 0:03:09.9]} 13. Qe2 {[%clk 0:02:50.8]} 13... Qc7 {[%clk 0:03:10.1]} 14.
Rd1 {[%clk 0:02:51.1]} 14... b6 {[%clk 0:03:09.6]} 15. Bb5 {[%clk 0:02:49.2]}
15... a6 {[%clk 0:03:03.6]} 16. Bd3 {[%clk 0:02:48.4]} 16... Bb7 {[%clk
0:03:01.9]} 17. Be3 {[%clk 0:02:42.7]} 17... Qxe5 {[%clk 0:02:47.7]} 18. Bxb6
{[%clk 0:02:41.2]} 18... Qxc3 {[%clk 0:02:44.6]} 19. Bd4 {[%clk 0:02:38.8]}
19... Qc6 {[%clk 0:02:44.8]} 20. f3 {[%clk 0:02:39]} 20... Rfd8 {[%clk
0:02:40.7]} 21. Rac1 {[%clk 0:02:34.8]} 21... Qa4 {[%clk 0:02:33.2]} 22. Rc4
{[%clk 0:02:33.7]} 22... Qa5 {[%clk 0:02:29.9]} 23. Qf2 {[%clk 0:02:25.2]} 23...
Rdc8 {[%clk 0:02:21.9]} 24. Bxg7 {[%clk 0:02:13.5]} 24... Rxc4 {[%clk
0:01:53.5]} 25. Bxc4 {[%clk 0:02:11.3]} 25... Kxg7 {[%clk 0:01:54.6]} 26. Qb2+
{[%clk 0:02:10.6]} 26... Bf6 {[%clk 0:01:49.9]} 27. Qxb7 {[%clk 0:02:09.3]}
27... Rd8 {[%clk 0:01:51.3]} 28. Rxd8 {[%clk 0:02:05.5]} 28... Bxd8 {[%clk
0:01:49.7]} 29. Qe4 {[%clk 0:02:00.6]} 29... Qd2 {[%clk 0:01:42.9]} 30. Qe2
{[%clk 0:01:50.5]} 30... Bb6+ {[%clk 0:01:43]} 31. Kh1 {[%clk 0:01:45.5]} 31...
Qd4 {[%clk 0:01:42.8]} 32. Qf1 {[%clk 0:01:46.3]} 32... a5 {[%clk 0:01:42.7]}
33. g3 {[%clk 0:01:44.4]} 33... a4 {[%clk 0:01:35.6]} 34. Kg2 {[%clk 0:01:35.7]}
34... Bc5 {[%clk 0:01:30.3]} 35. Kh3 {[%clk 0:01:33.5]} 35... Qf6 {[%clk
0:01:01.4]} 36. f4 {[%clk 0:01:30]} 36... Qf5+ {[%clk 0:01:00]} 37. Kg2 {[%clk
0:01:30]} 37... Qe4+ {[%clk 0:01:01.2]} 38. Kh3 {[%clk 0:01:28.3]} 38... Qf5+
{[%clk 0:00:53.7]} 39. Kg2 {[%clk 0:01:28.7]} 39... Bd4 {[%clk 0:00:49.2]} 40.
Qf3 {[%clk 0:01:23.7]} 40... Bb2 {[%clk 0:00:39.2]} 41. Bd3 {[%clk 0:01:20.2]}
41... Qc5 {[%clk 0:00:35]} 42. Qe4 {[%clk 0:01:18.2]} 42... Kf8 {[%clk
0:00:32.7]} 43. Qxa4 {[%clk 0:01:13.6]} 43... Qd5+ {[%clk 0:00:32.4]} 44. Be4
{[%clk 0:01:13.2]} 44... Qd2+ {[%clk 0:00:33]} 45. Kh3 {[%clk 0:01:14]} 45... h6
{[%clk 0:00:33.7]} 46. Qc4 {[%clk 0:01:09.4]} 46... Ba3 {[%clk 0:00:28.4]} 47.
Qb3 {[%clk 0:01:06.4]} 47... Qd6 {[%clk 0:00:28]} 48. Qc3 {[%clk 0:01:03.6]}
48... Ke7 {[%clk 0:00:25.6]} 49. Qh8 {[%clk 0:00:57.8]} 49... Qd1 {[%clk
0:00:15.3]} 50. Qxh6 {[%clk 0:00:53]} 50... Qf1+ {[%clk 0:00:16.9]} 51. Bg2
{[%clk 0:00:50.3]} 51... Qf2 {[%clk 0:00:18.3]} 52. Qg5+ {[%clk 0:00:47.8]}
52... Kf8 {[%clk 0:00:19.4]} 53. Qh5 {[%clk 0:00:46.4]} 53... Qxa2 {[%clk
0:00:17.8]} 54. Qh8+ {[%clk 0:00:44.7]} 54... Ke7 {[%clk 0:00:18.7]} 55. Qh4+
{[%clk 0:00:43.6]} 55... Kf8 {[%clk 0:00:17.2]} 56. Qd8+ {[%clk 0:00:41.4]}
56... Kg7 {[%clk 0:00:18.4]} 57. f5 {[%clk 0:00:39.2]} 57... Bb2 {[%clk
0:00:16.4]} 58. Qg5+ {[%clk 0:00:30.2]} 58... Kf8 {[%clk 0:00:16.3]} 59. f6
{[%clk 0:00:30.2]} 59... e5 {[%clk 0:00:17.9]} 60. Qh6+ {[%clk 0:00:26.3]} 60...
Ke8 {[%clk 0:00:18.6]} 61. Bc6+ {[%clk 0:00:25.2]} 61... Kd8 {[%clk 0:00:19.8]}
62. Qd2+ {[%clk 0:00:24.5]} 62... Kc7 {[%clk 0:00:20.2]} 63. Qd7+ {[%clk
0:00:24.7]} 63... Kb6 {[%clk 0:00:21.8]} 64. Bd5 {[%clk 0:00:22.3]} 64... Qa7
{[%clk 0:00:16.4]} 65. Qxa7+ {[%clk 0:00:20.6]} 65... Kxa7 {[%clk 0:00:17.4]}
66. Bxf7 {[%clk 0:00:22.5]} 66... e4 {[%clk 0:00:18.9]} 67. Bg6 {[%clk
0:00:23.6]} 67... Bxf6 {[%clk 0:00:20.8]} 68. Bxe4 {[%clk 0:00:25.5]} 68... Kb6
{[%clk 0:00:22.3]} 69. Kg4 {[%clk 0:00:27]} 69... Kc5 {[%clk 0:00:24.2]} 70. Kf5
{[%clk 0:00:28.4]} 70... Bd4 {[%clk 0:00:24.2]} 71. g4 {[%clk 0:00:29.5]} 71...
Kd6 {[%clk 0:00:26.1]} 72. h4 {[%clk 0:00:30.7]} 72... Ke7 {[%clk 0:00:28]} 73.
Kg6 {[%clk 0:00:30.9]} 73... Kf8 {[%clk 0:00:29.9]} 74. Kh7 {[%clk 0:00:31.8]}
74... Bf2 {[%clk 0:00:30.7]} 75. h5 {[%clk 0:00:32]} 75... Be3 {[%clk
0:00:32.6]} 76. Kg6 {[%clk 0:00:33.2]} 76... Kg8 {[%clk 0:00:33.6]} 77. g5
{[%clk 0:00:32.2]} 77... Bf4 {[%clk 0:00:33.7]} 78. Kf6 {[%clk 0:00:29.2]} 78...
Bc1 {[%clk 0:00:34.3]} 79. g6 {[%clk 0:00:29.9]} 79... Bb2+ {[%clk 0:00:35.1]}
80. Kf5 {[%clk 0:00:22.8]} 80... Kg7 {[%clk 0:00:34.8]} 81. Bd5 {[%clk
0:00:21.1]} 81... Bc1 {[%clk 0:00:36.7]} 82. Bf7 {[%clk 0:00:22]} 82... Bh6
{[%clk 0:00:36.9]} 83. Kg4 {[%clk 0:00:23]} 83... Kf8 {[%clk 0:00:37.1]} 84. Kf5
{[%clk 0:00:23.2]} 84... Kg7 {[%clk 0:00:39]} 85. Ke6 {[%clk 0:00:24]} 85... Bc1
{[%clk 0:00:40.4]} 86. Ke7 {[%clk 0:00:24.6]} 86... Bh6 {[%clk 0:00:42.3]} 87.
Ke8 {[%clk 0:00:25.3]} 87... Bc1 {[%clk 0:00:43.9]} 88. Be6 {[%clk 0:00:26.5]}
88... Bh6 {[%clk 0:00:45.8]} 1/2-1/2